Cogmind - Beta 9.6 @@@ ROGUE MODE // 2020.06.20 @ 18:52:04 Player: Wololo Result: Destroyed by G-47 Trooper with Particle Gun Performance ------------- Evolutions (2) 1000 Regions Visited (5) 1000 Robots Destroyed (17) 85 Value Destroyed (390) 390 Prototype IDs (22) 440 Alien Tech Used (0) 0 Bonus (300) 300 TOTAL SCORE: 3215 Bonus ------- Aligned with FarCom 300 Cogmind --------- Core Integrity 0/550 Matter 300/300 Energy 99/100 System Corruption 0% Temperature Cool (9) Movement Core (100) Ox1 Location -8/Materials Parts ------- > --- POWER (1) -------- (None) > --- PROPULSION (3) --- (None) > --- UTILITY (4) ------ Small Storage Unit Advanced Visual Processing Unit Advanced Signal Interpreter > --- WEAPON (3) ------- (None) > --- INVENTORY (6) ---- Light Nuclear Core Improved Propulsion Shielding AWS/Thermal Peak State ------------ > --- POWER ------------ Light Nuclear Core > --- PROPULSION ------- Light Treads Light Treads > --- UTILITY ---------- Small Storage Unit Improved Targeting Computer > --- WEAPON ----------- AWS/Thermal > --- INVENTORY -------- Ion Engine Signal Interpreter Spread Laser Assault Rifle Light Assault Rifle Mining Claw [Rating: 24] Favorites ----------- Power Ion Engine Engine Ion Engine Power Core Light Nuclear Core Propulsion Light Treads Treads Light Treads Utility Small Storage Unit Device Advanced Sensor Array Storage Small Storage Unit Processor Improved Targeting Computer Weapon Light Assault Rifle Energy Gun EM Pulse Gun Ballistic Gun Light Assault Rifle Slashing Weapon Mining Claw Build | -11 -10 -10 -10 -9 -8 ------- Run | Scr Mat Min Exi Min Mat Slots Evolved 4 | . . . . . 4 Power . | . . . . . . Propulsion 1 | . . . . . 1 Utility 2 | . . . . . 2 Weapon 1 | . . . . . 1 Parts Attached 24 | 6 1 . 2 4 11 Power 4 | 1 . . . 1 2 Engine 2 | 1 . . . . 1 Core 2 | . . . . 1 1 Reactor . | . . . . . . Propulsion 4 | 2 . . 2 . . Treads 4 | 2 . . 2 . . Leg . | . . . . . . Wheel . | . . . . . . Hover . | . . . . . . Flight . | . . . . . . Utility 6 | 1 1 . . . 4 Device 1 | . . . . . 1 Storage 1 | 1 . . . . . Processor 4 | . 1 . . . 3 Hackware . | . . . . . . Protection . | . . . . . . Artifact . | . . . . . . Weapon 10 | 2 . . . 3 5 Energy Gun 5 | 1 . . . 2 2 Energy Cannon . | . . . . . . Ballistic Gun 4 | 1 . . . 1 2 Ballistic Cannon . | . . . . . . Launcher . | . . . . . . Special Weapon . | . . . . . . Impact Weapon . | . . . . . . Slashing Weapon 1 | . . . . . 1 Piercing Weapon . | . . . . . . Special Melee Weapon . | . . . . . . Unidentified Prototypes . | . . . . . . Parts Lost 9 | . . . . . 9 Power 1 | . . . . . 1 Propulsion 2 | . . . . . 2 Utility 1 | . . . . . 1 Weapon 5 | . . . . . 5 Highest Loss Streak 8 | . . . . . 8 Average Slot Usage (%) 92 | . 99 100 99 92 77 Engine 7 | . 14 14 14 1 3 Core 4 | . . . . 12 4 Treads 24 | . 28 28 27 28 14 Device 1 | . . . . . 5 Storage 12 | . 14 14 14 14 9 Processor 14 | . 13 14 14 14 18 Energy Gun 13 | . 14 14 14 13 10 Ballistic Gun 9 | . 14 14 14 7 3 Slashing Weapon 1 | . . . . . 8 Naked Turns . | . . . . . . Heaviest Build 22 | 12 12 12 12 17 22 Greatest Support 40 | 40 40 40 40 40 40 Greatest Overweight (x) 3 | . . . 3 . 1 Average Overweight (x) . | . . . . . . Largest Inventory Capacity 6 | 6 6 6 6 6 6 Average Capacity 5 | 5 6 6 6 6 6 Most Carried 6 | 3 6 6 6 6 6 Average Carried 5 | 1 4 6 5 5 4 Final Capacity 6 | 6 6 6 6 6 6 Final Carried 6 | 1 6 6 6 6 4 Class Distribution -------------------- 86% | Mutant 13% | Assassin Dominant Class ---------------- Mutant | -10/Materials Mutant | -10/Mines Mutant | -10/Exiles Mutant | -9/Mines Assassin | -8/Materials Resources | -11 -10 -10 -10 -9 -8 ----------- Run | Scr Mat Min Exi Min Mat Matter Collected 428 | 200 76 . . 60 92 Remotely . | . . . . . . Salvage Created 565 | . 50 . . 357 158 Parts 18 | . 3 . . 9 6 Haulers Intercepted . | . . . . . . Recyclers Shooed . | . . . . . . Parts Field Recycled . | . . . . . . Retrieved Matter . | . . . . . . Parts Self-Destructed . | . . . . . . Prevented . | . . . . . . Kills | -11 -10 -10 -10 -9 -8 ------- Run | Scr Mat Min Exi Min Mat Combat Hostiles Destroyed 17 | . 1 . . 13 3 Melee 5 | . . . . 2 3 Guns 12 | . 1 . . 11 . Classes Destroyed 4 | . 1 . . 2 1 Grunt 7 | . 1 . . 5 1 Brawler 1 | . . . . 1 . Sentry 2 | . . . . . 2 Assembled 7 | . . . . 7 . Best Kill Streak 5 | . 1 . . 5 1 Combat Bots Only 5 | . 1 . . 5 1 Max Kills in Single Turn 1 | . 1 . . 1 1 Gunslinging . | . . . . . . Exploded . | . . . . . . Melee 1 | . . . . 1 1 Uniques/NPCs Destroyed . | . . . . . . Combat | -11 -10 -10 -10 -9 -8 -------- Run | Scr Mat Min Exi Min Mat Damage Taken 1659 | . 44 . . 269 1346 Core 604 | . . . . 49 555 Absorbed by Shields . | . . . . . . Core Remaining (%) 90 | 100 . . . 80 . Volleys Fired 18 | . 6 . . . 12 Largest 2 | . 2 . . . 2 Hottest 115 | . 60 . . . 115 Shots Fired 54 | . 12 . . 29 13 Gun 54 | . 12 . . 29 13 Cannon . | . . . . . . Launcher . | . . . . . . Special . | . . . . . . Kinetic 16 | . 6 . . . 10 Thermal 30 | . . . . 29 1 Explosive . | . . . . . . Electromagnetic 8 | . 6 . . . 2 Robot Hit Streak 14 | . 5 . . 14 11 Robot Miss Streak 3 | . 1 . . 2 3 Penetration Max . | . . . . . . Secondary Targets . | . . . . . . Autonomous 30 | . . . . 30 . Shots Hit Robots 56 | . 10 . . 25 21 Core Hits 21 | . 3 . . 13 5 Critical Hits . | . . . . . . Critical Kills . | . . . . . . Critical Parts Destroyed . | . . . . . . Melee Attacks 11 | . . . . . 11 Impact . | . . . . . . Slashing 11 | . . . . . 11 Piercing . | . . . . . . Sneak Attacks . | . . . . . . Combat Hostiles . | . . . . . . Follow-up Attacks . | . . . . . . Damage Inflicted 1283 | . 122 . . 778 383 Guns 1022 | . 122 . . 760 140 Cannons . | . . . . . . Explosions . | . . . . . . Melee 231 | . . . . . 231 Ramming 30 | . . . . 18 12 Kinetic 137 | . 35 . . . 102 Thermal 760 | . . . . 760 . Explosive . | . . . . . . Electromagnetic 125 | . 87 . . . 38 Impact . | . . . . . . Slashing 231 | . . . . . 231 Piercing . | . . . . . . Highest Corruption . | . . . . . . Average Corruption . | . . . . . . Corruption Purged . | . . . . . . Overload Shots . | . . . . . . Overflow Damage . | . . . . . . Projectiles . | . . . . . . Explosions . | . . . . . . Melee . | . . . . . . Knockbacks . | . . . . . . Impact . | . . . . . . Kinetic . | . . . . . . Secondary . | . . . . . . Self-Inflicted Damage 5 | . . . . . 5 Shots . | . . . . . . Rammed 9 | . . . . 7 2 Targets Rammed 11 | . . . . 9 2 Kicked . | . . . . . . Crushed 2 | . . . . 2 . Highest Temperature 57 | . 38 . . 4 57 Average Temperature 16 | . 17 . . 4 15 Received Heat Transfer 731 | . 24 . . 77 630 Siege Activations . | . . . . . . Robots Corrupted . | . . . . . . Combat Hostiles . | . . . . . . Parts Fried . | . . . . . . Impact Corruptions . | . . . . . . Robots Melted . | . . . . . . Combat Hostiles . | . . . . . . Parts Melted 1 | . . . . 1 . Heat Transferred 962 | . . . . 962 . Parts Sabotaged . | . . . . . . Parts Stolen . | . . . . . . Parts Stripped . | . . . . . . Power Chain Reactions . | . . . . . . Missiles Intercepted . | . . . . . . Alert | -11 -10 -10 -10 -9 -8 ------- Run | Scr Mat Min Exi Min Mat Peak Influence 140 | . 39 15 . 140 80 Average Influence 40 | . 21 15 . 58 35 Maximum Alert Level . | . . . . . . Low Security (%) 100 | 100 100 100 . 100 100 Level 1 . | . . . . . . Level 2 . | . . . . . . Level 3 . | . . . . . . Level 4 . | . . . . . . Level 5 . | . . . . . . High Security . | . . . . . . Max Security . | . . . . . . Squads Dispatched 3 | . 2 . . . 1 Investigation . | . . . . . . Extermination . | . . . . . . Reinforcement 3 | . 2 . . . 1 Assault . | . . . . . . Garrison . | . . . . . . Intercept . | . . . . . . Construction Impeded . | . . . . . . Haulers Reinforced . | . . . . . . Stealth | -11 -10 -10 -10 -9 -8 --------- Run | Scr Mat Min Exi Min Mat Distress Signals 1 | . . . . 1 . Communications Jammed . | . . . . . . Distress Signals . | . . . . . . Times Spotted 31 | . 3 . . 17 11 Peak Tracking Total 6 | . 1 . . 5 6 Tactical Retreats 3 | . . . . 2 1 Traps | -11 -10 -10 -10 -9 -8 ------- Run | Scr Mat Min Exi Min Mat Traps Triggered . | . . . . . . Indirectly . | . . . . . . Trap Hack Attempts . | . . . . . . Triggered . | . . . . . . Disarmed . | . . . . . . Reprogrammed . | . . . . . . Reused . | . . . . . . Traps Extracted . | . . . . . . Installed . | . . . . . . Triggered . | . . . . . . Exploded 1 | . . . 1 . . Machines | -11 -10 -10 -10 -9 -8 ---------- Run | Scr Mat Min Exi Min Mat Machines Disabled . | . . . . . . Max in Single Turn . | . . . . . . Machines Sabotaged . | . . . . . . Garrisons Compromised . | . . . . . . Overloaded Fab Kills . | . . . . . . Fab Network Shutdowns . | . . . . . . Hacking | -11 -10 -10 -10 -9 -8 --------- Run | Scr Mat Min Exi Min Mat Machines Accessed 8 | . 1 . 5 . 2 Terminals 2 | . 1 . . . 1 Fabricators . | . . . . . . Repair Stations . | . . . . . . Recycling Units . | . . . . . . Scanalyzers 1 | . . . . . 1 Garrison Access . | . . . . . . Total Hacks 65 | . 3 . 49 . 13 Successful 62 | . 2 . 49 . 11 Failed 3 | . 1 . . . 2 Catastrophic . | . . . . . . Database Lockouts . | . . . . . . Manual 1 | . . . 1 . . Terminals 7 | . 3 . . . 4 Fabricators . | . . . . . . Repair Stations . | . . . . . . Recycling Units . | . . . . . . Scanalyzers 9 | . . . . . 9 Garrison Access . | . . . . . . Terminal Hacks 54 | . 2 . 49 . 3 Record 50 | . . . 48 . 2 Alert Level 1 | . . . . . 1 Locate Traps 1 | . 1 . . . . Zone Layout 1 | . 1 . . . . EX-Prototype ID Bank 1 | . . . 1 . . Fabricator Hacks . | . . . . . . Repair Station Hacks . | . . . . . . Recycling Unit Hacks . | . . . . . . Scanalyzer 8 | . . . . . 8 Insert Component 4 | . . . . . 4 Analyze 4 | . . . . . 4 Garrison Access Hacks . | . . . . . . Unauthorized Hacks . | . . . . . . Terminals . | . . . . . . Fabricators . | . . . . . . Repair Stations . | . . . . . . Recycling Units . | . . . . . . Scanalyzers . | . . . . . . Garrison Access . | . . . . . . Data Cores Recovered . | . . . . . . Used . | . . . . . . Hacking Detections 1 | . . . . . 1 Full Trace Events . | . . . . . . Feedback Events . | . . . . . . Feedback Blocked . | . . . . . . Robot Schematics Acquired . | . . . . . . Robots Built . | . . . . . . Matter . | . . . . . . Time . | . . . . . . Total Robot Build Rating . | . . . . . . Part Schematics Acquired 3 | . . . . . 3 Parts Built . | . . . . . . Matter . | . . . . . . Time . | . . . . . . Total Part Build Rating . | . . . . . . Parts Repaired . | . . . . . . Time . | . . . . . . Parts Recycled . | . . . . . . Recycled Matter . | . . . . . . Retrieved Matter . | . . . . . . Retrieved Components . | . . . . . . Parts Scanalyzed 3 | . . . . . 3 Part Schematics Acquired 3 | . . . . . 3 Parts Damaged . | . . . . . . Bothacking | -11 -10 -10 -10 -9 -8 ------------ Run | Scr Mat Min Exi Min Mat Used RIF Installer . | . . . . . . Robots Hacked . | . . . . . . Non-combat . | . . . . . . Combat . | . . . . . . Robot Hacks Applied . | . . . . . . Relay Couplers Released . | . . . . . . Robots Rewired . | . . . . . . Allies Hacked . | . . . . . . Hacks Repelled . | . . . . . . Allies | -11 -10 -10 -10 -9 -8 -------- Run | Scr Mat Min Exi Min Mat Total Allies . | . . . . . . Largest Group . | . . . . . . Highest-Rated Group . | . . . . . . Highest-Rated Ally . | . . . . . . Total Orders . | . . . . . . Ally Attacks . | . . . . . . Total Damage . | . . . . . . Kills . | . . . . . . Allies Corrupted . | . . . . . . Allies Melted . | . . . . . . Intel | -11 -10 -10 -10 -9 -8 ------- Run | Scr Mat Min Exi Min Mat Robot Analysis Total . | . . . . . . Derelict Logs Recovered 1 | . . . . 1 . Drone Launches . | . . . . . . Drone Recoveries . | . . . . . . Exploration | -11 -10 -10 -10 -9 -8 ------------- Run | Scr Mat Min Exi Min Mat Turns Passed 2011 | 61 230 80 583 619 438 Spaces Moved 1118 | 35 127 51 355 348 202 Core 47 | 6 . . 3 . 38 Treads 1071 | 29 127 51 352 348 164 Legs . | . . . . . . Wheels . | . . . . . . Hover . | . . . . . . Flight . | . . . . . . Fastest Speed 50 | 50 160 160 160 160 100 Average Speed 157 | 141 160 160 160 160 149 Slowest Speed 200 | 160 160 160 200 160 180 Overloaded Moves . | . . . . . . Propulsion Burnouts . | . . . . . . Robots Hopped . | . . . . . . Cave-ins Triggered . | . . . . . . Exploration Rate (%) 30 | 3 32 12 72 47 15 Regions Visited 5 Branch Regions 3 Pre-discovered Areas 1 | . . . 1 . . Known Exits Taken . | . . . . . . Unknown Exits Taken 5 | 1 1 1 1 1 . Scrap Searched 2 | . . 1 . 1 . Spaces Dug . | . . . . . . Terrain Destroyed 3 | . . . . 3 . Melee . | . . . . . . Projectile 3 | . . . . 3 . AOE . | . . . . . . Actions | -11 -10 -10 -10 -9 -8 --------- Run | Scr Mat Min Exi Min Mat Total 1326 | 47 145 50 373 406 305 Wait 92 | . . . . 38 54 Move 1113 | 34 126 50 354 347 202 Hop . | . . . . . . Pick Up 36 | 7 9 . 8 4 8 Fast Attach . | . . . . . . Attach 19 | 6 1 . 2 3 7 Detach . | . . . . . . Swap 5 | . . . . 1 4 Drop 21 | . 3 . 9 4 5 Fire 18 | . 6 . . . 12 Melee 11 | . . . . . 11 Ram 2 | . . . . . 2 Kick . | . . . . . . Crush 9 | . . . . 9 . Escape Stasis . | . . . . . . Rewire . | . . . . . . Trap . | . . . . . . Miscellaneous . | . . . . . . Route ------- -11/Scrapyard -10/Materials (discovered 2 exits: [Mat] / [*Min]) -10/Mines -10/Exiles (discovered 2 exits: [*Min x2]) -9/Mines -8/Materials History --------- Turn | Location | Event 11 | -11/Scrapyard | Discovered new exit (range 15) 62 | -11/Scrapyard | Entered Materials 242 | -10/Materials | Discovered new exit (range 20) 242 | -10/Materials | Discovered new exit (range 16) 292 | -10/Materials | Entered Mines 315 | -10/Mines | Build established: Mutant 363 | -10/Mines | Deemed a non-threat by the Exiles lab entrance 364 | -10/Mines | Discovered new exit (range 5) 372 | -10/Mines | Entered Exiles 398 | -10/Exiles | Discovered new exit (range 14) 425 | -10/Exiles | Met 8R-AWN 451 | -10/Exiles | Met EX-HEX 539 | -10/Exiles | Met EX-DEC 598 | -10/Exiles | Met EX-BIN 632 | -10/Exiles | Aligned with FarCom system 633 | -10/Exiles | Given EX-Vault access code 704 | -10/Exiles | Opened EX-Vault 728 | -10/Exiles | Found Prototype Flight Unit 783 | -10/Exiles | Exiles lab attacked by MAIN.C 787 | -10/Exiles | Found Prototype Energy Gun 799 | -10/Exiles | Identified AWS/Thermal 892 | -10/Exiles | Learned location of Zion (-7) 939 | -10/Exiles | Discovered new exit (range 12) 955 | -10/Exiles | Left Exiles lab with AWS/Thermal 955 | -10/Exiles | Entered Mines 969 | -9/Mines | Met a Derelict bent on vengeance 979 | -9/Mines | Discovered new exit (range 7) 1040 | -9/Mines | Learned Materials non-interactive machine intel 1215 | -9/Mines | Assembled infested the area 1574 | -9/Mines | Entered Materials 1574 | -8/Materials | Evolved 4 slots: Propulsion x1, Utility x2, Weapon x1 1575 | -8/Materials | Loaded intel: 38 non-interactive machine locations 1970 | -8/Materials | Core integrity fell below 50% 2005 | -8/Materials | Core integrity fell below 20% 2012 | -8/Materials | Destroyed by G-47 Trooper with Particle Gun Last Messages --------------- Terminal disabled. Shock Rifle destroyed. C-30 ARC bursts open, deploying its payload. G-50 Soldier unfolds itself. G-47 Trooper unfolds itself. Spread Laser destroyed. G-50 Soldier IFF system glitched. Lgt. Treads destroyed. Assault Rifle destroyed. Deuterium Engine destroyed. G-47 Trooper destroyed. Acquired 33 matter. Electrolysis Chamber disabled. G-50 Soldier IFF system glitched. Mining Claw destroyed. Slammed into G-50 Soldier. Slammed into G-47 Trooper. K-01 Serf collects debris. G-47 Trooper destroyed. K-01 Serf collects debris. Map ----- +----------------------------------------------------+ | "?????????????""""???????????????????????????????? | | "?????????????""""???????????????????????????????? | | "????????????????????????????????????????????????? | | "????????????????????????????????????????????????? | | "????????????????????????????????????????????????? | | ?????????????????????????????????????????????????? | | ??????????????????????"""????????????????????????? | | ??????????????????????"""????????????????????????? | | ??????????????????????"""????????????????????????? | | ????????????????????????????###########??????????? | | ????????????????????? """???# """"" #??????????? | | ??????????????????????"""???# """"" #??????????? | | ??????????????????????"""???# """"" #??????????? | | ?????????# a?????????? ????# +??????????? | | ?????????# ##########+##### #??????????? | | ?????????# ## #??????????? | | ?????????? ## g #??????????? | | ?????????#?? """ %k ## % g #??????????? | | ?????????# ?""""" ##g#########??????????? | | ?????????# """"" g*%%#??????????????????? | | ?????????# """"" == #??????????????????? | | ?????????# """ "T" ! #??????????????????? | | ?????????# "" #??????????????????? | | ?????????# ####??????????????????? | | ????????Y# #?????????????????????? | | ?????????## ###@######?????????????????? | | ??????????# # #?????????????????? | | ??????????# + "" #?????????????????? | | ??????????# ## """ #?????????????????? | | ??????????# ###### ## """ #?????????????????? | | ?????????##+###### ## #???????????"""???? | | ???"""???# # ## #??????????"""""??? | | ???"""???# # [%+ "Y" #??????????"""""??? | | ???"""???# + =## """ #??????????"""""??? | | ?????????######### ## #???????????"""???? | | ?????###### ## ###########?????????????????? | | ?????# # #??????????????????????????? | | ?????# # #??????????????????????????? | | ?????# # #??????????????????????????? | | ??####+#### # #??????????????????????????? | | ??# ## ## #??????????????????????????? | | ??# """ ## ### ##??????????????????????????? | | ??# """ ## #?# #???????????????????????????? | | ??# """ ## #?# #???????????????????????????? | | ??# ## ### #???????????????????????????? | | ??####+#+## ## #???????????????????????????? | | ?????# #???????????????????????????? | | ?????# #???????????????????????????? | | ?????# #???????????????????????????? | | ???###+#+## ######???????????????????????????? | +----------------------------------------------------+ Best States ------------- Heat Dissipation 31 Energy Generation 14 Energy Capacity 275 Matter Stores 300 Matter Capacity 300 Sight Range 20 Robot Scan Range 16 Terrain Scan Density 10 Evasion (%) 40 Targeting Accuracy 6 Recoil Reduction 2 Item Schematics ----------------- Ion Engine | -8/Materials | Scanalyzed Assault Rifle | -8/Materials | Scanalyzed Spread Laser | -8/Materials | Scanalyzed Robot Schematics ------------------ None Fabricated ------------ Nothing Alien Tech Used ----------------- None Achievements -------------- None Challenges ------------ None Game ------ Seed ThermalCryofiberArray Manual? 0 Play Time 00:45:12 Cumulative 8.9 hours Start 2020.06.20 @ 14:27:49 End 2020.06.20 @ 18:52:04 Sessions 3 Manual Loads 0 Difficulty Rogue Special Mode None Game No. 14 Rogue 10 Adventurer 4 Explorer 0 Win Type - Total 0 Types 0/0/0/0/0/0/0 Lore% 13 Gallery% 14 Achievement% 10 Wizard Run 0 Options --------- ASCII 1 Keyboard 0 Movement Numpad Keybinds 0 Fullscreen 2 Font 12/Terminus Map View 83x54 Tactical HUD 0 Map Filters NONE Filters NONE Steam 1 RUN: 71afa25a-2cc0-468c-ac72-f174ff7f08d7